[Event "Titled Tuesday Blitz April 4 Early 2023"]
[White "Romero Pallares, Daniel"]
[Black "Sousa, Andre Ventura"]
[WhiteFideId "32025637"]
[BlackFideId "1917617"]
[WhiteElo "2195"]
[BlackElo "2348"]
[Result "0-1"]
[Round "11"]
[TimeControl "180+2"]
[Date "2023.04.04"]
[WhiteClock "0:00:02"]
[BlackClock "0:00:17"]

1. e4 {[%clk 0:03:00]}  e5 {[%clk 0:02:57]} 2. Nf3 {[%clk 0:02:59]}  Nc6 {[%clk 0:02:56]} 3. d4 {[%clk 0:02:59]}  exd4 {[%clk 0:02:56]} 4. Bc4 {[%clk 0:03:00]}  Nf6 {[%clk 0:02:56]} 5. e5 {[%clk 0:03:00]}  d5 {[%clk 0:02:56]} 6. Bb5 {[%clk 0:02:55]}  Ne4 {[%clk 0:02:56]} 7. Nxd4 {[%clk 0:02:56]}  Bc5 {[%clk 0:02:56]} 8. Be3 {[%clk 0:02:55]}  O-O {[%clk 0:02:56]} 9. Nxc6 {[%clk 0:02:54]}  bxc6 {[%clk 0:02:57]} 10. Bxc5 {[%clk 0:02:55]}  Nxc5 {[%clk 0:02:50]} 11. Bxc6 {[%clk 0:02:55]}  Rb8 {[%clk 0:02:50]} 12. Nc3 {[%clk 0:02:49]}  d4 {[%clk 0:02:47]} 13. Nd5 {[%clk 0:02:38]}  d3 {[%clk 0:02:28]} 14. O-O {[%clk 0:02:34]}  Bb7 {[%clk 0:02:08]} 15. Bxb7 {[%clk 0:02:23]}  Rxb7 {[%clk 0:02:09]} 16. Qf3 {[%clk 0:02:19]}  dxc2 {[%clk 0:02:00]} 17. b4 {[%clk 0:02:19]}  c6 {[%clk 0:01:57]} 18. Nf6+ {[%clk 0:02:04]}  gxf6 {[%clk 0:01:57]} 19. bxc5 {[%clk 0:01:57]}  fxe5 {[%clk 0:01:39]} 20. Rac1 {[%clk 0:01:40]}  Qd2 {[%clk 0:01:20]} 21. Qe4 {[%clk 0:01:15]}  Rb2 {[%clk 0:01:00]} 22. Qxe5 {[%clk 0:01:11]}  Rfb8 {[%clk 0:00:59]} 23. Qe4 {[%clk 0:00:53]}  R8b4 {[%clk 0:00:44]} 24. Qe8+ {[%clk 0:00:46]}  Kg7 {[%clk 0:00:44]} 25. Qe5+ {[%clk 0:00:46]}  Kg6 {[%clk 0:00:40]} 26. h4 {[%clk 0:00:40]}  h5 {[%clk 0:00:32]} 27. g3 {[%clk 0:00:36]}  Rb1 {[%clk 0:00:28]} 28. f4 {[%clk 0:00:12]}  Rxc1 {[%clk 0:00:17]} 29. Qg5+ {[%clk 0:00:12]}  Kh7 {[%clk 0:00:17]} 30. Qxh5+ {[%clk 0:00:10]}  Kg7 {[%clk 0:00:17]} 31. Qg5+ {[%clk 0:00:09]}  Kf8 {[%clk 0:00:18]} 32. Rxc1 {[%clk 0:00:03]}  Qxc1+ {[%clk 0:00:18]} 33. Kh2 {[%clk 0:00:03]}  Qd2+ {[%clk 0:00:17]} 34. Kh3 {[%clk 0:00:04]}  Qd7+ {[%clk 0:00:17]} 35. Kh2 {[%clk 0:00:02]}  c1=Q {[%clk 0:00:17]} 36. Qh6+ {[%clk 0:00:03]}  Ke8 {[%clk 0:00:17]} 37. Qh8+ {[%clk 0:00:03]}  Ke7 {[%clk 0:00:18]} 38. Qe5+ {[%clk 0:00:03]}  Kd8 {[%clk 0:00:17]} 39. Qh8+ {[%clk 0:00:02]}  Kc7 {[%clk 0:00:17]} 40. Qe5+ {[%clk 0:00:02]}  Kb7 {[%clk 0:00:17]} 0-1


[Site "https://www.chess.com"]

[Event "Titled Tuesday Blitz April 4 Early 2023"]
[White "Omelja, Artem"]
[Black "ArtemDyachuk"]
[WhiteFideId "14119846"]
[WhiteElo "2404"]
[BlackElo "2429"]
[Result "1-0"]
[Round "11"]
[TimeControl "180+2"]
[Date "2023.04.04"]
[WhiteClock "0:00:12"]
[BlackClock "0:00:04"]

1. e4 {[%clk 0:03:00]}  c5 {[%clk 0:02:55]} 2. Nf3 {[%clk 0:03:00]}  d6 {[%clk 0:02:54]} 3. Bb5+ {[%clk 0:03:00]}  Nd7 {[%clk 0:02:50]} 4. O-O {[%clk 0:02:57]}  Nf6 {[%clk 0:02:49]} 5. Re1 {[%clk 0:02:57]}  g6 {[%clk 0:02:46]} 6. c3 {[%clk 0:02:57]}  Bg7 {[%clk 0:02:45]} 7. d4 {[%clk 0:02:57]}  cxd4 {[%clk 0:02:43]} 8. cxd4 {[%clk 0:02:57]}  O-O {[%clk 0:02:43]} 9. Nc3 {[%clk 0:02:57]}  a6 {[%clk 0:02:41]} 10. Bf1 {[%clk 0:02:56]}  e5 {[%clk 0:02:38]} 11. dxe5 {[%clk 0:02:57]}  dxe5 {[%clk 0:02:38]} 12. Qd6 {[%clk 0:02:55]}  Re8 {[%clk 0:02:37]} 13. Bg5 {[%clk 0:02:55]}  Re6 {[%clk 0:02:28]} 14. Qd3 {[%clk 0:02:54]}  Qe8 {[%clk 0:02:12]} 15. Rad1 {[%clk 0:02:53]}  b5 {[%clk 0:02:01]} 16. Nd5 {[%clk 0:02:47]}  Nxd5 {[%clk 0:02:00]} 17. exd5 {[%clk 0:02:45]}  Rd6 {[%clk 0:01:47]} 18. Qa3 {[%clk 0:02:36]}  Qf8 {[%clk 0:01:40]} 19. Bd2 {[%clk 0:02:25]}  Rxd5 {[%clk 0:01:09]} 20. Bb4 {[%clk 0:02:24]}  Rxd1 {[%clk 0:01:10]} 21. Rxd1 {[%clk 0:01:53]}  Qe8 {[%clk 0:00:45]} 22. Bxb5 {[%clk 0:01:53]}  e4 {[%clk 0:00:46]} 23. Bc6 {[%clk 0:01:31]}  Rb8 {[%clk 0:00:43]} 24. Re1 {[%clk 0:01:29]}  Bb7 {[%clk 0:00:22]} 25. Rxe4 {[%clk 0:01:27]}  Qc8 {[%clk 0:00:20]} 26. Bxb7 {[%clk 0:01:24]}  Qxb7 {[%clk 0:00:21]} 27. Qd3 {[%clk 0:01:11]}  Nf6 {[%clk 0:00:15]} 28. Rd4 {[%clk 0:01:02]}  Qb6 {[%clk 0:00:12]} 29. a3 {[%clk 0:00:48]}  a5 {[%clk 0:00:09]} 30. Rd6 {[%clk 0:00:48]}  Qa7 {[%clk 0:00:05]} 31. Rd8+ {[%clk 0:00:43]}  Ne8 {[%clk 0:00:05]} 32. Bc5 {[%clk 0:00:24]}  Qc7 {[%clk 0:00:04]} 33. Rxb8 {[%clk 0:00:24]}  Qxb8 {[%clk 0:00:05]} 34. b4 {[%clk 0:00:24]}  axb4 {[%clk 0:00:06]} 35. axb4 {[%clk 0:00:25]}  Qa8 {[%clk 0:00:06]} 36. g3 {[%clk 0:00:24]}  Nc7 {[%clk 0:00:06]} 37. Ng5 {[%clk 0:00:22]}  h6 {[%clk 0:00:05]} 38. Ne4 {[%clk 0:00:22]}  Ne6 {[%clk 0:00:05]} 39. Nd6 {[%clk 0:00:21]}  Qc6 {[%clk 0:00:04]} 40. Qe4 {[%clk 0:00:16]}  Qa4 {[%clk 0:00:04]} 41. Qb7 {[%clk 0:00:13]}  Qd1+ {[%clk 0:00:04]} 42. Kg2 {[%clk 0:00:13]}  Ng5 {[%clk 0:00:04]} 43. h4 {[%clk 0:00:12]} 1-0


[Site "https://www.chess.com"]

[Event "Titled Tuesday Blitz April 4 Early 2023"]
[White "Kukreja, Sankalp"]
[Black "Demin, Vladimir"]
[WhiteFideId "45027676"]
[BlackFideId "4167457"]
[WhiteElo "2126"]
[BlackElo "2544"]
[Result "0-1"]
[Round "11"]
[TimeControl "180+2"]
[Date "2023.04.04"]
[WhiteClock "0:00:08"]
[BlackClock "0:00:50"]

1. e4 {[%clk 0:02:56]}  e5 {[%clk 0:02:54]} 2. Nf3 {[%clk 0:02:56]}  Nc6 {[%clk 0:02:53]} 3. Bc4 {[%clk 0:02:54]}  Bc5 {[%clk 0:02:43]} 4. O-O {[%clk 0:02:48]}  Nf6 {[%clk 0:02:43]} 5. d4 {[%clk 0:02:48]}  Bxd4 {[%clk 0:02:39]} 6. Nxd4 {[%clk 0:02:46]}  Nxd4 {[%clk 0:02:39]} 7. f4 {[%clk 0:02:45]}  d6 {[%clk 0:02:39]} 8. fxe5 {[%clk 0:02:42]}  dxe5 {[%clk 0:02:40]} 9. Bg5 {[%clk 0:02:43]}  Qe7 {[%clk 0:02:40]} 10. c3 {[%clk 0:02:34]}  Ne6 {[%clk 0:02:39]} 11. Bxf6 {[%clk 0:02:30]}  gxf6 {[%clk 0:02:40]} 12. Kh1 {[%clk 0:02:28]}  h5 {[%clk 0:02:31]} 13. Qf3 {[%clk 0:02:25]}  Nf4 {[%clk 0:02:31]} 14. g3 {[%clk 0:02:23]}  Bg4 {[%clk 0:02:31]} 15. Qf2 {[%clk 0:02:23]}  Ne6 {[%clk 0:02:06]} 16. Qxf6 {[%clk 0:02:22]}  Qxf6 {[%clk 0:02:05]} 17. Rxf6 {[%clk 0:02:23]}  Ng5 {[%clk 0:02:06]} 18. Na3 {[%clk 0:02:15]}  Ke7 {[%clk 0:01:54]} 19. Raf1 {[%clk 0:02:13]}  Bh3 {[%clk 0:01:52]} 20. Rxf7+ {[%clk 0:01:42]}  Nxf7 {[%clk 0:01:50]} 21. Rxf7+ {[%clk 0:01:43]}  Kd6 {[%clk 0:01:33]} 22. Nb5+ {[%clk 0:01:38]}  Kc5 {[%clk 0:01:33]} 23. Rxc7+ {[%clk 0:01:16]}  Kb6 {[%clk 0:01:28]} 24. Rg7 {[%clk 0:00:44]}  Rh6 {[%clk 0:00:58]} 25. a4 {[%clk 0:00:12]}  Rd8 {[%clk 0:00:51]} 26. b4 {[%clk 0:00:08]}  Rd1+ {[%clk 0:00:50]} 0-1


[Site "https://www.chess.com"]

[Event "Titled Tuesday Blitz April 4 Early 2023"]
[White "Manukian, Artak"]
[Black "Fiorito, Joaquin"]
[WhiteFideId "13301373"]
[BlackFideId "180173"]
[WhiteElo "2130"]
[BlackElo "2157"]
[Result "1-0"]
[Round "11"]
[TimeControl "180+2"]
[Date "2023.04.04"]
[WhiteClock "0:01:50"]
[BlackClock "0:00:56"]

1. e4 {[%clk 0:03:00]}  c6 {[%clk 0:02:59]} 2. d4 {[%clk 0:03:00]}  d5 {[%clk 0:02:58]} 3. e5 {[%clk 0:03:00]}  Bf5 {[%clk 0:02:58]} 4. c4 {[%clk 0:03:01]}  e6 {[%clk 0:02:59]} 5. Nc3 {[%clk 0:03:01]}  Ne7 {[%clk 0:02:59]} 6. Nf3 {[%clk 0:03:00]}  Nd7 {[%clk 0:02:58]} 7. Nh4 {[%clk 0:03:00]}  dxc4 {[%clk 0:02:53]} 8. Bxc4 {[%clk 0:02:59]}  Bg6 {[%clk 0:02:50]} 9. O-O {[%clk 0:02:58]}  Nd5 {[%clk 0:02:43]} 10. Nxg6 {[%clk 0:02:57]}  hxg6 {[%clk 0:02:43]} 11. g3 {[%clk 0:02:56]}  N7b6 {[%clk 0:02:37]} 12. Bb3 {[%clk 0:02:55]}  Nxc3 {[%clk 0:02:35]} 13. bxc3 {[%clk 0:02:55]}  Be7 {[%clk 0:02:33]} 14. h4 {[%clk 0:02:54]}  Bxh4 {[%clk 0:02:23]} 15. Kg2 {[%clk 0:02:54]}  Be7 {[%clk 0:02:10]} 16. Rh1 {[%clk 0:02:51]}  O-O {[%clk 0:01:59]} 17. Qg4 {[%clk 0:02:42]}  Nd5 {[%clk 0:01:45]} 18. Qh3 {[%clk 0:02:20]}  f5 {[%clk 0:01:44]} 19. Qh7+ {[%clk 0:02:14]}  Kf7 {[%clk 0:01:44]} 20. Rh6 {[%clk 0:02:14]}  Ke8 {[%clk 0:01:29]} 21. Qxg7 {[%clk 0:02:12]}  Nxc3 {[%clk 0:01:07]} 22. Qxg6+ {[%clk 0:01:59]}  Kd7 {[%clk 0:01:07]} 23. Qxe6+ {[%clk 0:01:55]}  Kc7 {[%clk 0:01:08]} 24. Rh7 {[%clk 0:01:52]}  Qd7 {[%clk 0:00:56]} 25. Rxe7 {[%clk 0:01:50]} 1-0


[Site "https://www.chess.com"]

[Event "Titled Tuesday Blitz April 4 Early 2023"]
[White "Staudenhocker43"]
[Black "Yanayt, Eugene"]
[BlackFideId "2020165"]
[WhiteElo "2534"]
[BlackElo "2083"]
[Result "0-1"]
[Round "11"]
[TimeControl "180+2"]
[Date "2023.04.04"]
[WhiteClock "0:00:18"]
[BlackClock "0:00:08"]

1. d4 {[%clk 0:03:00]}  g6 {[%clk 0:02:58]} 2. e4 {[%clk 0:03:00]}  c5 {[%clk 0:02:58]} 3. dxc5 {[%clk 0:02:57]}  Bg7 {[%clk 0:02:57]} 4. Nc3 {[%clk 0:02:55]}  Qa5 {[%clk 0:02:53]} 5. Bd2 {[%clk 0:02:55]}  Qxc5 {[%clk 0:02:52]} 6. Nd5 {[%clk 0:02:53]}  Na6 {[%clk 0:02:40]} 7. Nf3 {[%clk 0:02:21]}  Nf6 {[%clk 0:02:32]} 8. b4 {[%clk 0:02:16]}  Qd6 {[%clk 0:02:16]} 9. Bxa6 {[%clk 0:02:04]}  Nxd5 {[%clk 0:02:04]} 10. Bc4 {[%clk 0:01:54]}  Nc3 {[%clk 0:01:57]} 11. Bxc3 {[%clk 0:01:35]}  Bxc3+ {[%clk 0:01:56]} 12. Ke2 {[%clk 0:01:36]}  Qxb4 {[%clk 0:01:46]} 13. Qd3 {[%clk 0:01:28]}  Bxa1 {[%clk 0:01:40]} 14. Rxa1 {[%clk 0:01:29]}  d6 {[%clk 0:01:22]} 15. Ng5 {[%clk 0:01:19]}  O-O {[%clk 0:01:07]} 16. Kf1 {[%clk 0:01:16]}  h6 {[%clk 0:01:02]} 17. Nf3 {[%clk 0:01:14]}  Bd7 {[%clk 0:00:54]} 18. e5 {[%clk 0:01:11]}  Bf5 {[%clk 0:00:53]} 19. Qd4 {[%clk 0:01:07]}  Be6 {[%clk 0:00:32]} 20. Bxe6 {[%clk 0:00:59]}  Qxd4 {[%clk 0:00:31]} 21. Nxd4 {[%clk 0:00:58]}  fxe6 {[%clk 0:00:30]} 22. Nxe6 {[%clk 0:00:59]}  Rf5 {[%clk 0:00:28]} 23. exd6 {[%clk 0:00:58]}  exd6 {[%clk 0:00:28]} 24. Nd4 {[%clk 0:00:50]}  Rc5 {[%clk 0:00:25]} 25. Re1 {[%clk 0:00:47]}  Kf7 {[%clk 0:00:23]} 26. Re3 {[%clk 0:00:41]}  Re8 {[%clk 0:00:20]} 27. Rf3+ {[%clk 0:00:41]}  Kg7 {[%clk 0:00:21]} 28. g3 {[%clk 0:00:38]}  Rc4 {[%clk 0:00:20]} 29. Nb5 {[%clk 0:00:38]}  Rxc2 {[%clk 0:00:18]} 30. Nxd6 {[%clk 0:00:38]}  Re7 {[%clk 0:00:18]} 31. a3 {[%clk 0:00:36]}  Rc5 {[%clk 0:00:16]} 32. h4 {[%clk 0:00:33]}  h5 {[%clk 0:00:15]} 33. Rf4 {[%clk 0:00:30]}  a6 {[%clk 0:00:14]} 34. Kg2 {[%clk 0:00:28]}  Rc2 {[%clk 0:00:14]} 35. Nc4 {[%clk 0:00:25]}  Rf7 {[%clk 0:00:13]} 36. Rxf7+ {[%clk 0:00:24]}  Kxf7 {[%clk 0:00:13]} 37. Nd6+ {[%clk 0:00:24]}  Ke6 {[%clk 0:00:13]} 38. Nxb7 {[%clk 0:00:25]}  Rc3 {[%clk 0:00:11]} 39. a4 {[%clk 0:00:24]}  Rc4 {[%clk 0:00:10]} 40. Kf3 {[%clk 0:00:20]}  Kd5 {[%clk 0:00:09]} 41. a5 {[%clk 0:00:20]}  Ke6 {[%clk 0:00:07]} 42. Ke3 {[%clk 0:00:18]}  Kd7 {[%clk 0:00:07]} 43. Kd3 {[%clk 0:00:18]}  Rc7 {[%clk 0:00:08]} 0-1


[Site "https://www.chess.com"]

[Event "Titled Tuesday Blitz April 4 Early 2023"]
[White "Sreyas Payyappat"]
[Black "lluiss"]
[WhiteFideId "46674969"]
[WhiteElo "2083"]
[BlackElo "2255"]
[Result "1-0"]
[Round "11"]
[TimeControl "180+2"]
[Date "2023.04.04"]
[WhiteClock "0:00:35"]
[BlackClock "0:00:01"]

1. e4 {[%clk 0:03:00]}  c5 {[%clk 0:02:59]} 2. Nf3 {[%clk 0:03:00]}  d6 {[%clk 0:02:59]} 3. d4 {[%clk 0:03:01]}  cxd4 {[%clk 0:02:59]} 4. Nxd4 {[%clk 0:03:01]}  Nf6 {[%clk 0:02:59]} 5. Nc3 {[%clk 0:03:01]}  g6 {[%clk 0:03:00]} 6. f4 {[%clk 0:02:59]}  Nc6 {[%clk 0:02:58]} 7. Be3 {[%clk 0:02:57]}  Bg7 {[%clk 0:02:57]} 8. Be2 {[%clk 0:02:55]}  O-O {[%clk 0:02:57]} 9. Qd3 {[%clk 0:02:53]}  Nb4 {[%clk 0:02:26]} 10. Qd2 {[%clk 0:02:52]}  e5 {[%clk 0:02:26]} 11. Nf3 {[%clk 0:02:49]}  Ng4 {[%clk 0:01:53]} 12. Bg1 {[%clk 0:02:42]}  exf4 {[%clk 0:01:46]} 13. h3 {[%clk 0:02:39]}  Ne3 {[%clk 0:01:42]} 14. Bd3 {[%clk 0:02:36]}  d5 {[%clk 0:01:31]} 15. a3 {[%clk 0:02:11]}  dxe4 {[%clk 0:01:28]} 16. Nxe4 {[%clk 0:02:00]}  Bxb2 {[%clk 0:01:07]} 17. Rb1 {[%clk 0:01:49]}  Nxd3+ {[%clk 0:00:54]} 18. cxd3 {[%clk 0:01:46]}  Bg7 {[%clk 0:00:49]} 19. Bxe3 {[%clk 0:01:44]}  fxe3 {[%clk 0:00:49]} 20. Qe2 {[%clk 0:01:40]}  f5 {[%clk 0:00:48]} 21. Neg5 {[%clk 0:01:39]}  Bc3+ {[%clk 0:00:45]} 22. Kf1 {[%clk 0:01:37]}  h6 {[%clk 0:00:40]} 23. Qa2+ {[%clk 0:01:28]}  Kg7 {[%clk 0:00:33]} 24. Qc4 {[%clk 0:00:49]}  Bf6 {[%clk 0:00:25]} 25. h4 {[%clk 0:00:38]}  hxg5 {[%clk 0:00:11]} 26. hxg5 {[%clk 0:00:39]}  Bxg5 {[%clk 0:00:03]} 27. Ke2 {[%clk 0:00:39]}  Bf6 {[%clk 0:00:01]} 28. Rh2 {[%clk 0:00:35]} 1-0


[Site "https://www.chess.com"]

[Event "Titled Tuesday Blitz April 4 Early 2023"]
[White "EREBUNI91"]
[Black "Lach, Aleksandra"]
[BlackFideId "1134299"]
[WhiteElo "2634"]
[BlackElo "2111"]
[Result "1-0"]
[Round "11"]
[TimeControl "180+2"]
[Date "2023.04.04"]
[WhiteClock "0:00:56"]
[BlackClock "0:00:13"]

1. e4 {[%clk 0:03:00]}  c5 {[%clk 0:02:53]} 2. Nc3 {[%clk 0:03:00]}  a6 {[%clk 0:02:53]} 3. g3 {[%clk 0:02:59]}  b5 {[%clk 0:02:52]} 4. Bg2 {[%clk 0:02:59]}  Bb7 {[%clk 0:02:53]} 5. Nge2 {[%clk 0:03:00]}  e5 {[%clk 0:02:49]} 6. O-O {[%clk 0:02:58]}  Nf6 {[%clk 0:02:43]} 7. f4 {[%clk 0:02:58]}  d6 {[%clk 0:02:44]} 8. d3 {[%clk 0:02:56]}  Be7 {[%clk 0:02:42]} 9. fxe5 {[%clk 0:02:54]}  dxe5 {[%clk 0:02:41]} 10. Bg5 {[%clk 0:02:54]}  Nbd7 {[%clk 0:02:39]} 11. Kh1 {[%clk 0:02:38]}  O-O {[%clk 0:02:38]} 12. Ng1 {[%clk 0:02:21]}  h6 {[%clk 0:02:32]} 13. Be3 {[%clk 0:02:20]}  b4 {[%clk 0:02:28]} 14. Na4 {[%clk 0:02:17]}  Qa5 {[%clk 0:02:22]} 15. b3 {[%clk 0:02:17]}  Bc6 {[%clk 0:02:22]} 16. Nb2 {[%clk 0:02:17]}  Rad8 {[%clk 0:02:16]} 17. Nc4 {[%clk 0:02:17]}  Qc7 {[%clk 0:02:16]} 18. Nf3 {[%clk 0:02:17]}  Ng4 {[%clk 0:02:02]} 19. Bg1 {[%clk 0:02:13]}  f5 {[%clk 0:01:55]} 20. Nfd2 {[%clk 0:02:04]}  g6 {[%clk 0:01:29]} 21. h3 {[%clk 0:01:57]}  Ngf6 {[%clk 0:01:29]} 22. exf5 {[%clk 0:01:56]}  Bxg2+ {[%clk 0:01:25]} 23. Kxg2 {[%clk 0:01:57]}  gxf5 {[%clk 0:01:10]} 24. Rxf5 {[%clk 0:01:58]}  Qc6+ {[%clk 0:01:09]} 25. Qf3 {[%clk 0:01:55]}  Qe6 {[%clk 0:01:08]} 26. Rf1 {[%clk 0:01:53]}  Kh8 {[%clk 0:00:58]} 27. g4 {[%clk 0:01:50]}  Nd5 {[%clk 0:00:52]} 28. Bh2 {[%clk 0:01:40]}  Nf4+ {[%clk 0:00:40]} 29. Bxf4 {[%clk 0:01:39]}  exf4 {[%clk 0:00:38]} 30. Qxf4 {[%clk 0:01:39]}  Bg5 {[%clk 0:00:36]} 31. Qe4 {[%clk 0:01:31]}  Qg8 {[%clk 0:00:26]} 32. Ne5 {[%clk 0:01:20]}  Nf6 {[%clk 0:00:24]} 33. Qe2 {[%clk 0:01:07]}  Kg7 {[%clk 0:00:16]} 34. Ndf3 {[%clk 0:01:01]}  Nd5 {[%clk 0:00:16]} 35. Nxg5 {[%clk 0:00:57]}  hxg5 {[%clk 0:00:15]} 36. Rxg5+ {[%clk 0:00:57]}  Kh7 {[%clk 0:00:13]} 37. Qe4+ {[%clk 0:00:56]}  Kh6 {[%clk 0:00:13]} 1-0


[Site "https://www.chess.com"]

[Event "Titled Tuesday Blitz April 4 Early 2023"]
[White "Hajiyev, Kanan"]
[Black "Martic, Ivan"]
[WhiteFideId "13404148"]
[BlackFideId "929301"]
[WhiteElo "2103"]
[BlackElo "2360"]
[Result "1-0"]
[Round "11"]
[TimeControl "180+2"]
[Date "2023.04.04"]
[WhiteClock "0:00:21"]
[BlackClock "0:00:26"]

1. d4 {[%clk 0:02:46]}  d5 {[%clk 0:02:58]} 2. c4 {[%clk 0:02:45]}  Nc6 {[%clk 0:02:59]} 3. Nc3 {[%clk 0:02:39]}  dxc4 {[%clk 0:02:58]} 4. d5 {[%clk 0:02:32]}  Na5 {[%clk 0:02:57]} 5. e4 {[%clk 0:02:32]}  c6 {[%clk 0:02:54]} 6. Nf3 {[%clk 0:02:20]}  e6 {[%clk 0:02:51]} 7. Be2 {[%clk 0:02:08]}  exd5 {[%clk 0:02:42]} 8. exd5 {[%clk 0:02:07]}  Nf6 {[%clk 0:02:42]} 9. Bg5 {[%clk 0:01:39]}  h6 {[%clk 0:02:40]} 10. Bh4 {[%clk 0:01:26]}  Bb4 {[%clk 0:02:33]} 11. O-O {[%clk 0:01:16]}  cxd5 {[%clk 0:02:11]} 12. Bxf6 {[%clk 0:01:09]}  Qxf6 {[%clk 0:02:07]} 13. Nxd5 {[%clk 0:01:09]}  Qd6 {[%clk 0:02:08]} 14. a3 {[%clk 0:00:49]}  Bc5 {[%clk 0:02:03]} 15. Qa4+ {[%clk 0:00:48]}  Bd7 {[%clk 0:01:54]} 16. Nf6+ {[%clk 0:00:33]}  Qxf6 {[%clk 0:01:48]} 17. Qxa5 {[%clk 0:00:33]}  Bb6 {[%clk 0:01:44]} 18. Qe5+ {[%clk 0:00:32]}  Qxe5 {[%clk 0:01:44]} 19. Nxe5 {[%clk 0:00:33]}  Be6 {[%clk 0:01:44]} 20. Bxc4 {[%clk 0:00:32]}  O-O {[%clk 0:01:28]} 21. Bxe6 {[%clk 0:00:32]}  fxe6 {[%clk 0:01:29]} 22. Nd7 {[%clk 0:00:30]}  Rfd8 {[%clk 0:01:26]} 23. Nxb6 {[%clk 0:00:31]}  axb6 {[%clk 0:01:27]} 24. Rfe1 {[%clk 0:00:31]}  Kf7 {[%clk 0:01:24]} 25. Rad1 {[%clk 0:00:31]}  Rac8 {[%clk 0:01:22]} 26. Kf1 {[%clk 0:00:30]}  Ke7 {[%clk 0:01:13]} 27. Rxd8 {[%clk 0:00:24]}  Rxd8 {[%clk 0:01:14]} 28. Ke2 {[%clk 0:00:23]}  Rd5 {[%clk 0:01:11]} 29. Rc1 {[%clk 0:00:21]}  Rc5 {[%clk 0:01:01]} 30. Kd2 {[%clk 0:00:19]}  Kd6 {[%clk 0:00:55]} 31. Rc3 {[%clk 0:00:19]}  Rh5 {[%clk 0:00:49]} 32. h3 {[%clk 0:00:18]}  Rf5 {[%clk 0:00:49]} 33. Rd3+ {[%clk 0:00:19]}  Kc6 {[%clk 0:00:47]} 34. f3 {[%clk 0:00:19]}  g5 {[%clk 0:00:44]} 35. Re3 {[%clk 0:00:19]}  Kd6 {[%clk 0:00:44]} 36. Kc3 {[%clk 0:00:19]}  Rc5+ {[%clk 0:00:43]} 37. Kd3 {[%clk 0:00:19]}  Rc1 {[%clk 0:00:42]} 38. Kd2 {[%clk 0:00:19]}  Rg1 {[%clk 0:00:42]} 39. Re2 {[%clk 0:00:19]}  Kd5 {[%clk 0:00:42]} 40. Ke3 {[%clk 0:00:20]}  e5 {[%clk 0:00:42]} 41. Kf2 {[%clk 0:00:20]}  Rb1 {[%clk 0:00:42]} 42. Kg3 {[%clk 0:00:20]}  h5 {[%clk 0:00:38]} 43. h4 {[%clk 0:00:21]}  gxh4+ {[%clk 0:00:38]} 44. Kxh4 {[%clk 0:00:22]}  Rh1+ {[%clk 0:00:38]} 45. Kg5 {[%clk 0:00:22]}  Kd4 {[%clk 0:00:38]} 46. Re4+ {[%clk 0:00:22]}  Kd5 {[%clk 0:00:33]} 47. Kf5 {[%clk 0:00:22]}  Rh2 {[%clk 0:00:32]} 48. Rxe5+ {[%clk 0:00:22]}  Kd4 {[%clk 0:00:32]} 49. Re2 {[%clk 0:00:23]}  h4 {[%clk 0:00:33]} 50. Kg4 {[%clk 0:00:22]}  h3 {[%clk 0:00:32]} 51. Re4+ {[%clk 0:00:21]}  Kd5 {[%clk 0:00:33]} 52. gxh3 {[%clk 0:00:20]}  Rxb2 {[%clk 0:00:32]} 53. h4 {[%clk 0:00:21]}  Rg2+ {[%clk 0:00:32]} 54. Kh3 {[%clk 0:00:21]}  Rf2 {[%clk 0:00:30]} 55. Kg3 {[%clk 0:00:20]}  Rf1 {[%clk 0:00:31]} 56. h5 {[%clk 0:00:21]}  Ra1 {[%clk 0:00:30]} 57. a4 {[%clk 0:00:21]}  Rh1 {[%clk 0:00:28]} 58. Rh4 {[%clk 0:00:21]}  Rg1+ {[%clk 0:00:29]} 59. Kf4 {[%clk 0:00:21]}  Rg8 {[%clk 0:00:29]} 60. h6 {[%clk 0:00:22]}  Rh8 {[%clk 0:00:28]} 61. h7 {[%clk 0:00:22]}  Ke6 {[%clk 0:00:28]} 62. Ke4 {[%clk 0:00:21]}  Kf6 {[%clk 0:00:28]} 63. f4 {[%clk 0:00:22]}  Kg6 {[%clk 0:00:28]} 64. f5+ {[%clk 0:00:22]}  Kf6 {[%clk 0:00:28]} 65. Kf4 {[%clk 0:00:22]}  Kf7 {[%clk 0:00:28]} 66. Ke5 {[%clk 0:00:21]}  Kg7 {[%clk 0:00:27]} 67. f6+ {[%clk 0:00:21]}  Kg6 {[%clk 0:00:27]} 68. Ke6 {[%clk 0:00:20]}  Re8+ {[%clk 0:00:27]} 69. Kd7 {[%clk 0:00:20]}  Rh8 {[%clk 0:00:27]} 70. Ke7 {[%clk 0:00:20]}  Kg5 {[%clk 0:00:27]} 71. Rh1 {[%clk 0:00:20]}  Kg6 {[%clk 0:00:26]} 72. f7 {[%clk 0:00:21]} 1-0


[Site "https://www.chess.com"]

[Event "Titled Tuesday Blitz April 4 Early 2023"]
[White "Kopczynski, Michal"]
[Black "Kozin, Yuri"]
[WhiteFideId "1124200"]
[BlackFideId "4129920"]
[WhiteElo "2212"]
[BlackElo "2554"]
[Result "1-0"]
[Round "11"]
[TimeControl "180+2"]
[Date "2023.04.04"]
[WhiteClock "0:00:06"]
[BlackClock "0:00:03"]

1. e4 {[%clk 0:03:00]}  c5 {[%clk 0:03:00]} 2. d4 {[%clk 0:03:01]}  cxd4 {[%clk 0:02:59]} 3. c3 {[%clk 0:03:01]}  Nf6 {[%clk 0:02:59]} 4. Bd3 {[%clk 0:03:00]}  e6 {[%clk 0:02:54]} 5. f4 {[%clk 0:03:00]}  dxc3 {[%clk 0:02:49]} 6. Nxc3 {[%clk 0:03:01]}  Bb4 {[%clk 0:02:48]} 7. Nf3 {[%clk 0:03:01]}  d5 {[%clk 0:02:48]} 8. e5 {[%clk 0:03:01]}  Ne4 {[%clk 0:02:38]} 9. O-O {[%clk 0:03:01]}  Qb6+ {[%clk 0:02:15]} 10. Kh1 {[%clk 0:02:58]}  Nf2+ {[%clk 0:02:15]} 11. Rxf2 {[%clk 0:02:59]}  Qxf2 {[%clk 0:02:15]} 12. Nb5 {[%clk 0:02:49]}  Qb6 {[%clk 0:01:58]} 13. Be3 {[%clk 0:01:39]}  Qxe3 {[%clk 0:01:35]} 14. Nc7+ {[%clk 0:01:39]}  Kd8 {[%clk 0:01:25]} 15. Nxa8 {[%clk 0:01:40]}  Qxf4 {[%clk 0:01:08]} 16. Qa4 {[%clk 0:01:32]}  Nc6 {[%clk 0:01:06]} 17. Bb5 {[%clk 0:01:23]}  Bd7 {[%clk 0:00:19]} 18. Bxc6 {[%clk 0:01:09]}  Bxc6 {[%clk 0:00:19]} 19. Qxa7 {[%clk 0:01:10]}  Ke7 {[%clk 0:00:20]} 20. Nb6 {[%clk 0:00:59]}  Bc5 {[%clk 0:00:17]} 21. Qa5 {[%clk 0:00:55]}  Qe3 {[%clk 0:00:15]} 22. Na4 {[%clk 0:00:52]}  Ba7 {[%clk 0:00:14]} 23. Re1 {[%clk 0:00:48]}  Qf2 {[%clk 0:00:14]} 24. Nc3 {[%clk 0:00:38]}  Ra8 {[%clk 0:00:10]} 25. Ne2 {[%clk 0:00:22]}  Qc5 {[%clk 0:00:07]} 26. Qd2 {[%clk 0:00:17]}  Kf8 {[%clk 0:00:06]} 27. Rf1 {[%clk 0:00:13]}  Qe3 {[%clk 0:00:05]} 28. Qc2 {[%clk 0:00:11]}  Kg8 {[%clk 0:00:05]} 29. h4 {[%clk 0:00:10]}  d4 {[%clk 0:00:05]} 30. Nc1 {[%clk 0:00:06]}  Rc8 {[%clk 0:00:03]} 31. Ng5 {[%clk 0:00:06]} 1-0


[Site "https://www.chess.com"]